fUSD/lending_fUSD_20260602
["ID","MTS","AMOUNT","RATE_DAILY","PERIOD"]
[423745106,1780371042000,-1019.78539024,0.000135,2]
[423745109,1780371042000,-500.0,0.00013571,2]
[423745110,1780371042000,-150.0,0.00013591,2]
[423745118,1780371042000,-3683.18169052,0.00013667,2]
[423745107,1780371042000,-3360.24784467,0.000135,2]
[423745115,1780371042000,-1226.0,0.00013632,2]
[423745111,1780371042000,-865.76,0.00013593,2]
[423745113,1780371042000,-525.0,0.00013632,2]
[423745112,1780371042000,-150.0,0.00013624,2]
[423745105,1780371042000,-2517.51676509,0.000135,2]
[423745138,1780371042000,-500.0,0.00013698,2]
[423745136,1780371042000,-657.68,0.00013698,2]
[423745139,1780371042000,-500.0,0.00013698,2]
[423745167,1780371042000,-500.0,0.00013698,2]
[423745166,1780371042000,-268.63965714,0.00013698,2]
[423745165,1780371042000,-500.0,0.00013698,2]
[423745170,1780371042000,-510.29608046,0.00013698,2]
[423745172,1780371042000,-500.0,0.00013698,2]
[423745171,1780371042000,-500.0,0.00013698,2]
[423745173,1780371042000,-500.0,0.00013698,2]
[423745174,1780371042000,-500.0,0.00013698,2]
[423745175,1780371042000,-500.0,0.00013698,2]
[423745161,1780371042000,-500.0,0.00013698,2]
[423745178,1780371042000,-517.56704979,0.00013698,2]
[423745179,1780371042000,-500.0,0.00013698,2]
[423745180,1780371042000,-504.04395398,0.00013698,2]
[423745181,1780371042000,-500.0,0.00013698,2]
[423745182,1780371042000,-500.0,0.00013698,2]
[423745185,1780371042000,-500.0,0.00013698,2]
[423745186,1780371042000,-500.0,0.00013698,2]
[423745183,1780371042000,-500.0,0.00013698,2]
[423745187,1780371042000,-500.0,0.00013698,2]
[423745140,1780371042000,-500.0,0.00013698,2]
[423745177,1780371042000,-500.0,0.00013698,2]
[423745168,1780371042000,-500.0,0.00013698,2]
[423745176,1780371042000,-500.0,0.00013698,2]
[423745163,1780371042000,-299.9493767,0.00013698,2]
[423745142,1780371042000,-500.0,0.00013698,2]
[423745164,1780371042000,-288.69606,0.00013698,2]
[423745145,1780371042000,-500.0,0.00013698,2]
[423745157,1780371042000,-288.69606,0.00013698,2]
[423745156,1780371042000,-500.0,0.00013698,2]
[423745155,1780371042000,-500.0,0.00013698,2]
[423745150,1780371042000,-500.0,0.00013698,2]
[423745149,1780371042000,-500.0,0.00013698,2]
[423745154,1780371042000,-500.0,0.00013698,2]
[423745148,1780371042000,-502.22681897,0.00013698,2]
[423745147,1780371042000,-500.0,0.00013698,2]
[423745153,1780371042000,-288.69606,0.00013698,2]
[423745146,1780371042000,-500.0,0.00013698,2]
[423745144,1780371042000,-500.0,0.00013698,2]
[423745152,1780371042000,-500.0,0.00013698,2]
[423745151,1780371042000,-500.0,0.00013698,2]
[423745159,1780371042000,-500.0,0.00013698,2]
[423745160,1780371042000,-288.69606,0.00013698,2]
[423745169,1780371042000,-500.0,0.00013698,2]
[423745158,1780371042000,-500.0,0.00013698,2]
[423745162,1780371042000,-500.0,0.00013698,2]
[423745226,1780371043000,-1382.0,0.00013699,2]
[423745222,1780371043000,-288.69606,0.00013699,2]
[423745220,1780371043000,-288.69606,0.00013699,2]
[423745228,1780371043000,-1382.0,0.00013699,2]
[423745224,1780371043000,-1382.0,0.00013699,2]
[423745229,1780371043000,-1382.0,0.00013699,2]
[423745230,1780371043000,-1382.0,0.00013699,2]
[423745221,1780371043000,-288.69606,0.00013699,2]
[423745225,1780371043000,-1382.0,0.00013699,2]
[423745223,1780371043000,-1382.0,0.00013699,2]
[423745231,1780371043000,-1382.0,0.00013699,2]
[423745237,1780371043000,-1382.0,0.00013699,2]
[423745235,1780371043000,-1382.0,0.00013699,2]
[423745233,1780371043000,-1382.0,0.00013699,2]
[423745236,1780371043000,-1382.0,0.00013699,2]
[423745238,1780371043000,-1382.0,0.00013699,2]
[423745243,1780371043000,-1382.0,0.00013699,2]
[423745232,1780371043000,-1382.0,0.00013699,2]
[423745241,1780371043000,-1382.0,0.00013699,2]
[423745242,1780371043000,-1382.0,0.00013699,2]
[423745239,1780371043000,-1382.0,0.00013699,2]
[423745240,1780371043000,-1382.0,0.00013699,2]
[423745227,1780371043000,-1382.0,0.00013699,2]
[423745234,1780371043000,-1382.0,0.00013699,2]
[423745219,1780371043000,-288.69606,0.00013699,2]
[423745200,1780371043000,-273.20119,0.00013699,2]
[423745217,1780371043000,-151.0,0.00013699,2]
[423745245,1780371043000,-1382.0,0.00013699,2]
[423745188,1780371043000,-500.0,0.00013698,2]
[423745199,1780371043000,-273.20119,0.00013699,2]
[423745198,1780371043000,-273.20119,0.00013699,2]
[423745189,1780371043000,-500.0,0.00013698,2]
[423745190,1780371043000,-500.0,0.00013698,2]
[423745191,1780371043000,-500.0,0.00013698,2]
[423745193,1780371043000,-500.0,0.00013698,2]
[423745195,1780371043000,-500.0,0.00013698,2]
[423745197,1780371043000,-200.0,0.00013699,2]
[423745192,1780371043000,-500.0,0.00013698,2]
[423745218,1780371043000,-151.0,0.00013699,2]
[423745194,1780371043000,-500.0,0.00013698,2]
[423745213,1780371043000,-155.370964,0.00013699,2]
[423745214,1780371043000,-151.0,0.00013699,2]
[423745208,1780371043000,-721.34,0.00013699,2]
[423745216,1780371043000,-501.83190583,0.00013699,2]
[423745207,1780371043000,-2500.0,0.00013699,2]
[423745204,1780371043000,-151.0,0.00013699,2]
[423745205,1780371043000,-151.0,0.00013699,2]
[423745211,1780371043000,-199.16335623,0.00013699,2]
[423745206,1780371043000,-204.499108,0.00013699,2]
[423745209,1780371043000,-166.66,0.00013699,2]
[423745215,1780371043000,-486.16445216,0.00013699,2]
[423745202,1780371043000,-273.20119,0.00013699,2]
[423745256,1780371043000,-4124.664,0.0001371,2]
[423745264,1780371043000,-151.0,0.00013795,2]
[423745255,1780371043000,-300.599,0.00013702,2]
[423745276,1780371043000,-151.0,0.00013839,2]
[423745280,1780371043000,-150.0,0.00013862,2]
[423745279,1780371043000,-150.0,0.00013862,2]
[423745277,1780371043000,-500.0,0.00013845,2]
[423745275,1780371043000,-166.66,0.00013836,2]
[423745278,1780371043000,-150.0,0.00013849,2]
[423745283,1780371043000,-500.0,0.00013906,2]
[423745281,1780371043000,-150.0,0.00013896,2]
[423745285,1780371043000,-240.88759131,0.00013929,2]
[423745295,1780371043000,-301.29,0.00013968,2]
[423745284,1780371043000,-150.0,0.00013916,2]
[423745282,1780371043000,-150.0,0.00013901,2]
[423745286,1780371043000,-7537.89616377,0.00013941,2]
[423745288,1780371043000,-650.0,0.00013941,2]
[423745287,1780371043000,-6862.74436324,0.00013941,2]
[423745290,1780371043000,-504.28224,0.00013941,2]
[423745294,1780371043000,-150.0,0.00013953,2]
[423745296,1780371043000,-151.0,0.00013972,2]
[423745297,1780371043000,-151.0,0.00013972,2]
[423745298,1780371043000,-166.66,0.00013973,2]
[423745299,1780371043000,-165.50504578,0.00013976,2]
[423745300,1780371043000,-3661.73559892,0.00013976,2]
[423745301,1780371043000,-151.0,0.0001398,2]
[423745302,1780371043000,-500.0,0.00013999,2]
[423745292,1780371043000,-653.04837249,0.00013941,2]
[423745273,1780371043000,-1004.0,0.0001381,5]
[423745257,1780371043000,-156.724997,0.00013717,2]
[423745274,1780371043000,-215.00504169,0.00013825,2]
[423745272,1780371043000,-709.0,0.0001381,5]
[423745244,1780371043000,-1382.0,0.00013699,2]
[423745246,1780371043000,-1392.08413993,0.00013699,2]
[423745251,1780371043000,-2790.58,0.000137,2]
[423745248,1780371043000,-259.59094657,0.00013699,2]
[423745247,1780371043000,-580.72,0.00013699,2]
[423745250,1780371043000,-208.97,0.000137,2]
[423745249,1780371043000,-500.0,0.00013699,2]
[423745254,1780371043000,-150.0,0.00013702,2]
[423745253,1780371043000,-8670.07497573,0.00013702,2]
[423745258,1780371043000,-164.0,0.0001372,2]
[423745263,1780371043000,-151.0,0.00013789,2]
[423745252,1780371043000,-7537.89616377,0.00013702,2]
[423745261,1780371043000,-200.0,0.00013757,2]
[423745260,1780371043000,-150.0,0.00013746,2]
[423745271,1780371043000,-151.0,0.00013798,2]
[423745267,1780371043000,-150.0,0.00013798,2]
[423745270,1780371043000,-151.0,0.00013798,2]
[423745266,1780371043000,-500.0,0.00013797,2]
[423745268,1780371043000,-152.140701,0.00013798,2]
[423745303,1780371043000,-200.0,0.00013999,2]
[423745269,1780371043000,-153.992552,0.00013798,2]
[423745265,1780371043000,-500.0,0.00013797,2]
[423745259,1780371043000,-1591.0,0.0001372,2]
[423745262,1780371043000,-150.0,0.0001376,2]
[423745305,1780371044000,-2115.12422444,0.00014,2]
[423745321,1780371044000,-33.43906636,0.0001405,2]
[423745318,1780371044000,-338.74534404,0.0001404,2]
[423745319,1780371044000,-341.04,0.0001404,2]
[423745331,1780371044000,-150.0,0.0001413,2]
[423745312,1780371044000,-2024.54104248,0.0001404,2]
[423745306,1780371044000,-2221.99923234,0.00014,2]
[423745307,1780371044000,-657.68,0.00014004,2]
[423745315,1780371044000,-294.45895752,0.0001404,2]
[423745310,1780371044000,-2319.0,0.0001404,2]
[423745309,1780371044000,-150.0,0.00014033,2]
[423745304,1780371044000,-250.0,0.00014,2]
[423745325,1780371044000,-823.0,0.00014082,2]
[423745308,1780371044000,-150.0,0.00014004,2]
[423745324,1780371044000,-150.0,0.00014056,2]
[423745329,1780371044000,-500.0,0.00014119,2]
[423745322,1780371044000,-116.56093364,0.0001405,2]
[423745323,1780371044000,-500.0,0.0001405,2]
[423745338,1780371044000,-103.07825396,0.00014169,2]
[423745337,1780371044000,-46.92174604,0.00014169,2]
[423745339,1780371044000,-240.88759131,0.00014172,2]
[423745336,1780371044000,-150.0,0.00014159,2]
[423745333,1780371044000,-91.35288845,0.00014131,2]
[423745334,1780371044000,-152.07825396,0.00014131,2]
[423745335,1780371044000,-151.0,0.00014147,2]
[423745328,1780371044000,-166.66,0.0001411,2]
[423745327,1780371044000,-150.0,0.00014108,2]
[423745330,1780371044000,-736.0,0.00014123,2]
[423745326,1780371044000,-3292.0,0.00014107,2]
[423745320,1780371044000,-1639.21465596,0.0001404,2]
[423745332,1780371044000,-2345.0,0.0001413,2]
[423745340,1780371044000,-244.31721151,0.00014181,2]
[423745356,1780371046000,-150.0,0.00014237,2]
[423745359,1780371046000,-500.0,0.00014249,2]
[423745360,1780371046000,-500.0,0.00014249,2]
[423745358,1780371046000,-166.66,0.00014247,2]
[423745357,1780371046000,-200.0,0.00014241,2]
[423745355,1780371046000,-150.0,0.00014237,2]
[423745352,1780371046000,-500.0,0.00014194,2]
[423745351,1780371046000,-151.0,0.00014181,2]
[423745349,1780371046000,-7293.57895226,0.00014181,2]
[423745350,1780371046000,-8670.07497573,0.00014181,2]
[423745348,1780371046000,-6069.0,0.00013418,2]
[423745346,1780371046000,-3409.546208,0.00012745,2]
[423745362,1780371046000,-500.0,0.00014249,2]
[423745353,1780371046000,-150.0,0.00014211,2]
[423745361,1780371046000,-500.0,0.00014249,2]
[423745354,1780371046000,-150.0,0.00014237,2]
[423745364,1780371046000,-25592.54695369,0.0001425,2]
[423745363,1780371046000,-6026.99559479,0.0001425,2]
[423745378,1780371046000,-501.0,0.0001425,2]
[423745374,1780371046000,-80840.17292141,0.0001425,2]
[423745376,1780371046000,-1110.9295,0.0001425,2]
[423745375,1780371046000,-4469.02748726,0.0001425,2]
[423745377,1780371046000,-1151.30067516,0.0001425,2]
[423745373,1780371046000,-11064.99378478,0.0001425,2]
[423745369,1780371046000,-273.20119,0.0001425,2]
[423745368,1780371046000,-273.20119,0.0001425,2]
[423745372,1780371046000,-250.6982997,0.0001425,2]
[423745371,1780371046000,-16003.28034951,0.0001425,2]
[423745366,1780371046000,-48070.36489049,0.0001425,2]
[423745370,1780371046000,-273.20119,0.0001425,2]
[423745367,1780371046000,-273.20119,0.0001425,2]
[423745365,1780371046000,-494.61771879,0.0001425,2]
[423745396,1780371203000,3000.0,0.00030137,120]
[423745398,1780371242000,482.0,0.0003013,120]
[423745399,1780371244000,6751.4812781,0.0003013,120]
[423745401,1780371302000,193.0,0.0003013,120]
[423745402,1780371324000,-227.55474399,0.00010493,2]
[423745403,1780371378000,-218.23754876,0.00010499,2]
[423745404,1780371431000,-500.0,0.00010597,2]
[423745405,1780371451000,269.12,0.00030082,120]
[423745407,1780371454000,-246.2211022,0.00010597,2]
[423745406,1780371454000,-500.0,0.00010597,2]
[423745408,1780371498000,-253.7788978,0.00010597,2]
[423745409,1780371501000,-253.7788978,0.00010596,2]
[423745410,1780371537000,-152.73212188,0.00010496,2]
[423745411,1780371551000,207.79,0.000301,120]
[423745415,1780371552000,-194.53575624,0.00010596,2]
[423745414,1780371552000,-152.73212188,0.00010499,2]
[423745413,1780371552000,-152.73212188,0.00010498,2]
[423745416,1780371590000,-1200.0,0.00010597,2]
[423745417,1780371644000,-1200.0,0.00010598,2]
[423745418,1780371668000,1513.08148989,0.0003013,120]
[423745419,1780371698000,-300.0,0.00010598,2]
[423745420,1780371715000,508.51,0.00030137,120]
[423745421,1780371750000,-196.71525341,0.00010598,2]
[423745422,1780371751000,500.0,0.00030137,120]
[423745423,1780371804000,-500.0,0.00010597,2]
[423745424,1780371808000,3363.834,0.00010387,2]
[423745426,1780372032000,-500.0,0.00010596,2]
[423745427,1780372046000,-500.0,0.00010596,2]
[423745428,1780372084000,-500.0,0.00010596,2]
[423745429,1780372101000,-500.0,0.00010596,2]
[423745430,1780372121000,200.0,0.00010069,2]
[423745431,1780372124000,200.63,0.00010069,7]
[423745434,1780372138000,-1081.0,0.00010596,2]
[423745435,1780372153000,-1200.0,0.00010596,2]
[423745436,1780372154000,2000.0,0.00030136,120]
[423745437,1780372192000,-500.0,0.00010597,2]
[423745438,1780372207000,-500.0,0.00010597,2]
[423745503,1780372245000,-475.34878331,0.00010597,2]
[423745506,1780372260000,-500.0,0.00010598,2]
[423745508,1780372260000,-236.79176708,0.00010598,2]
[423745516,1780372260000,-1015.79310861,0.00010599,2]
[423745511,1780372260000,-495.94581036,0.00010598,2]
[423745509,1780372260000,-183.20823292,0.00010598,2]
[423745510,1780372260000,-59.3196529,0.00010598,2]
[423745517,1780372260000,-343.32323318,0.00010599,2]
[423745507,1780372260000,-240.01793856,0.00010598,2]
[423745515,1780372260000,-2825.45016805,0.00010599,2]
[423745512,1780372260000,-133.32304341,0.00010598,2]
[423745514,1780372260000,-500.0,0.00010599,2]
[423745518,1780372260000,-1254.09285305,0.00010599,2]
[423745520,1780372260000,-7393.85317137,0.00010599,2]
[423745519,1780372260000,-1102.86804713,0.00010599,2]
[423745522,1780372260000,-8045.54526625,0.00010599,2]
[423745521,1780372260000,-14008.45535382,0.00010599,2]
[423745513,1780372260000,-57.97880012,0.00010598,2]
[423745523,1780372261000,-479.40714151,0.00010599,2]
[423745524,1780372261000,-5080.1344845,0.00010599,2]
[423745525,1780372261000,-395.24465621,0.00010599,2]
[423745527,1780372261000,-4733.45355449,0.00010599,2]
[423745526,1780372261000,-2626.30415785,0.00010599,2]
[423745529,1780372261000,-27411.36283179,0.00010599,2]
[423745530,1780372261000,-500.0,0.00010599,2]
[423745532,1780372261000,-24312.80119672,0.00010599,2]
[423745528,1780372261000,-318.46,0.00010599,2]
[423745531,1780372261000,-425976.0,0.00010599,2]
[423745534,1780372298000,-151.0,0.00010596,2]
[423745537,1780372352000,-150.0,0.00010598,2]
[423745538,1780372405000,-250.0,0.000106,2]
[423745539,1780372459000,-270.62826027,0.000106,2]
[423745540,1780372504000,-215.67541492,0.0001078,2]
[423745541,1780372505000,4999.0,0.00030136,120]
[423745543,1780372783000,2500.0,0.00030136,120]
[423745544,1780372791000,2500.0,0.00030136,120]
[423745545,1780372803000,337.0,0.00030136,120]
[423745548,1780372850000,-196.75034628,0.00010964,2]
[423745549,1780372866000,-196.40240648,0.00010991,2]
[423745550,1780372902000,-0.3479398,0.00010991,2]
[423745551,1780372918000,-196.40240648,0.00010995,2]
[423745552,1780372956000,-300.0,0.00011093,2]
[423745553,1780372972000,-500.0,0.00011094,2]
[423745554,1780373009000,-196.75034628,0.00011043,2]
[423745555,1780373025000,-500.0,0.000106,2]
[423745556,1780373063000,-5757.7875627,0.000106,2]
[423745557,1780373077000,160.45,0.0003,120]
[423745558,1780373078000,-5757.7875627,0.000106,2]
[423745559,1780373116000,-1200.0,0.00010598,2]
[423745560,1780373170000,-300.0,0.00010598,2]
[423745561,1780373190000,352.87488064,0.0003,120]
[423745563,1780373193000,510.50537125,0.0002,120]
[423745562,1780373193000,200.0,0.00030137,120]
[423745564,1780373222000,-1200.0,0.00010598,2]
[423745565,1780373277000,-300.0,0.00010597,2]
[423745566,1780373330000,-500.0,0.00010597,2]
[423745567,1780373341000,2000.0,0.00030136,120]
[423745577,1780373433000,-196.40240646,0.00010497,2]
[423745579,1780373433000,-1031.0,0.00010596,2]
[423745578,1780373433000,-196.40240646,0.000105,2]
[423745580,1780373433000,-26.24289537,0.00010596,2]
[423745590,1780373438000,-999.99785714,0.00010596,2]
[423745591,1780373438000,-173.75924749,0.00010596,2]
[423745595,1780373438000,-150.31724895,0.00010596,2]
[423745592,1780373438000,-500.0,0.00010596,2]
[423745598,1780373438000,-500.0,0.00010596,2]
[423745593,1780373438000,-500.0,0.00010596,2]
[423745594,1780373438000,-500.0,0.00010596,2]
[423745596,1780373438000,-500.0,0.00010596,2]
[423745597,1780373438000,-500.0,0.00010596,2]
[423745599,1780373438000,-500.0,0.00010596,2]
[423745606,1780373438000,-500.0,0.00010599,2]
[423745600,1780373438000,-500.0,0.00010596,2]
[423745604,1780373438000,-578.26220474,0.00010599,2]
[423745605,1780373438000,-196.71525341,0.00010599,2]
[423745602,1780373438000,-16.54820599,0.00010596,2]
[423745603,1780373438000,-224.90682416,0.00010599,2]
[423745608,1780373438000,-157.43477691,0.00010599,2]
[423745609,1780373438000,-150.0,0.00010599,2]
[423745611,1780373438000,-360.90989524,0.000106,2]
[423745610,1780373438000,-5650.01588084,0.000106,2]
[423745601,1780373438000,-483.45179401,0.00010596,2]
[423745607,1780373438000,-183.76679395,0.00010599,2]
[423745613,1780373440000,-562.50075852,0.000106,2]
[423745623,1780373443000,152.0,0.00010073,7]
[423745625,1780373443000,-6659.04487098,0.000106,2]
[423745624,1780373443000,-645.50197003,0.000106,2]
[423745626,1780373444000,-7.66740084,0.000106,2]
[423745628,1780373444000,152.0,0.00010073,7]
[423745633,1780373445000,152.0,0.00016908,30]
[423745636,1780373446000,-3791.08896936,0.000106,2]
[423745635,1780373446000,-2935.74081743,0.000106,2]
[423745637,1780373446000,-322.8916,0.000106,2]
[423745700,1780373599000,-1550.64,0.00010542,2]
[423745701,1780373615000,-501.57779898,0.00010596,2]
[423745702,1780373652000,-500.0,0.00010595,2]
[423745703,1780373667000,-300.0,0.00010594,2]
[423745704,1780373667000,-200.0,0.00010595,2]
[423745705,1780373706000,-1200.0,0.00010593,2]
[423745707,1780373721000,-300.0,0.00010593,2]
[423745708,1780373721000,-3.59759352,0.00010593,2]
[423745706,1780373721000,-196.40240648,0.00010494,2]
[423745709,1780373759000,-296.40240648,0.00010593,2]
[423745710,1780373774000,-186.0,0.00010593,2]
[423745711,1780373812000,-1200.0,0.00010593,2]
[423745712,1780373827000,-404.78354332,0.00010593,2]
[423745713,1780373866000,-300.0,0.00010592,2]
[423745714,1780373881000,-478.63675577,0.00010593,2]
[423745715,1780373919000,-150.0,0.00010592,2]
[423745716,1780373973000,-500.0,0.00010593,2]
[423745717,1780374026000,-500.0,0.00010592,2]
[423745718,1780374079000,-300.0,0.00010592,2]
[423745719,1780374126000,224.26,0.00030082,120]
[423745720,1780374351000,508.78,9.879e-05,2]
[423745723,1780374382000,-1200.0,0.00010589,2]
[423745724,1780374398000,-196.75034628,0.00010589,2]
[423745725,1780374436000,-300.0,0.00010588,2]
[423745726,1780374452000,-150.0,0.00010588,2]
[423745727,1780374490000,-335.04572903,0.00010589,2]
[423745728,1780374507000,-283.34848033,0.00010589,2]
[423745729,1780374542000,-234.53201033,0.00010588,2]
[423745731,1780374558000,-198.34393623,0.00010588,2]
[423745730,1780374558000,2000.0,0.00030135,120]
[423745732,1780374596000,-516.13842104,0.00010588,2]
[423745733,1780374611000,-500.0,0.00010588,2]
[423745738,1780374631000,-270.62826027,0.00010588,2]
[423745740,1780374631000,-500.0,0.00010588,2]
[423745742,1780374631000,-500.0,0.00010588,2]
[423745743,1780374631000,-500.0,0.00010588,2]
[423745746,1780374631000,-218.00775612,0.00010588,2]
[423745741,1780374631000,-500.0,0.00010588,2]
[423745748,1780374631000,-119.59160968,0.00010588,2]
[423745745,1780374631000,-500.0,0.00010588,2]
[423745739,1780374631000,-500.0,0.00010588,2]
[423745747,1780374631000,-322.07296906,0.00010588,2]
[423745744,1780374631000,-544.4591595,0.00010588,2]
[423745750,1780374631000,-249.42685665,0.00010588,2]
[423745749,1780374631000,-459.59598166,0.00010588,2]
[423745758,1780374631000,-500.0,0.00010588,2]
[423745757,1780374631000,-500.0,0.00010588,2]
[423745753,1780374631000,-500.0,0.00010588,2]
[423745759,1780374631000,-189.95869022,0.00010588,2]
[423745756,1780374631000,-500.0,0.00010588,2]
[423745755,1780374631000,-500.0,0.00010588,2]
[423745752,1780374631000,-500.0,0.00010588,2]
[423745751,1780374631000,-250.57314335,0.00010588,2]
[423745754,1780374631000,-500.0,0.00010588,2]
[423745780,1780374632000,-500.0,0.00010588,2]
[423745791,1780374632000,-500.0,0.00010588,2]
[423745785,1780374632000,-500.0,0.00010588,2]
[423745790,1780374632000,-500.0,0.00010588,2]
[423745786,1780374632000,-500.0,0.00010588,2]
[423745782,1780374632000,-500.0,0.00010588,2]
[423745781,1780374632000,-500.0,0.00010588,2]
[423745779,1780374632000,-500.0,0.00010588,2]
[423745778,1780374632000,-500.0,0.00010588,2]
[423745774,1780374632000,-500.0,0.00010588,2]
[423745776,1780374632000,-500.0,0.00010588,2]
[423745773,1780374632000,-500.0,0.00010588,2]
[423745775,1780374632000,-500.0,0.00010588,2]
[423745789,1780374632000,-500.0,0.00010588,2]
[423745772,1780374632000,-500.0,0.00010588,2]
[423745771,1780374632000,-500.0,0.00010588,2]
[423745768,1780374632000,-310.04130978,0.00010588,2]
[423745769,1780374632000,-500.0,0.00010588,2]
[423745777,1780374632000,-340.40696782,0.00010588,2]
[423745783,1780374632000,-500.0,0.00010588,2]
[423745770,1780374632000,-500.0,0.00010588,2]
[423745787,1780374632000,-500.0,0.00010588,2]
[423745809,1780374632000,-1379.3184648,0.000106,2]
[423745808,1780374632000,-514.62729366,0.000106,2]
[423745806,1780374632000,-163.58,0.00010591,2]
[423745807,1780374632000,-15921.2606147,0.000106,2]
[423745805,1780374632000,-500.0,0.00010591,2]
[423745804,1780374632000,-500.0,0.00010588,2]
[423745799,1780374632000,-400.0,0.00010588,2]
[423745803,1780374632000,-500.0,0.00010588,2]
[423745802,1780374632000,-500.0,0.00010588,2]
[423745801,1780374632000,-500.0,0.00010588,2]
[423745800,1780374632000,-500.0,0.00010588,2]
[423745798,1780374632000,-500.0,0.00010588,2]
[423745796,1780374632000,-500.0,0.00010588,2]
[423745797,1780374632000,-500.0,0.00010588,2]
[423745794,1780374632000,-500.0,0.00010588,2]
[423745795,1780374632000,-500.0,0.00010588,2]
[423745792,1780374632000,-500.0,0.00010588,2]
[423745793,1780374632000,-500.0,0.00010588,2]
[423745788,1780374632000,-500.0,0.00010588,2]
[423745784,1780374632000,-500.0,0.00010588,2]
[423745844,1780374649000,-5757.7875627,0.000106,2]
[423745845,1780374649000,-568.53506614,0.000106,2]
[423745846,1780374649000,-4807.52829045,0.000106,2]
[423745868,1780374650000,-151.0,0.00011515,2]
[423745863,1780374650000,-472.64867634,0.00011413,2]
[423745866,1780374650000,-671.23,0.00011501,2]
[423745867,1780374650000,-170.54,0.00011512,2]
[423745869,1780374650000,-879.95,0.00011527,2]
[423745875,1780374650000,-1124.0,0.00011726,2]
[423745877,1780374650000,-1000.0,0.00011804,2]
[423745881,1780374650000,-160.0,0.00012043,2]
[423745885,1780374650000,-151.0,0.00012328,2]
[423745879,1780374650000,-2000.0,0.00011846,2]
[423745880,1780374650000,-167.14,0.00011883,2]
[423745878,1780374650000,-1243.69,0.00011846,2]
[423745882,1780374650000,-188.78,0.0001208,2]
[423745876,1780374650000,-756.61,0.00011751,2]
[423745884,1780374650000,-1243.69,0.00012135,2]
[423745883,1780374650000,-500.0,0.00012106,2]
[423745886,1780374650000,-151.0,0.00012328,2]
[423745895,1780374650000,-1243.69,0.00012424,2]
[423745864,1780374650000,-200.0,0.00011483,2]
[423745857,1780374650000,-187.78,0.00010973,2]
[423745873,1780374650000,-158.90404089,0.00011648,2]
[423745847,1780374650000,-2363.50822628,0.000106,2]
[423745848,1780374650000,-606.89174004,0.000106,2]
[423745849,1780374650000,-1151.43236136,0.000106,2]
[423745850,1780374650000,-5753.19263933,0.000106,2]
[423745851,1780374650000,-1536.5064999,0.000106,2]
[423745853,1780374650000,-3994.37773693,0.00010614,2]
[423745854,1780374650000,-196.75034628,0.00010639,2]
[423745859,1780374650000,-251.46551812,0.00011128,7]
[423745874,1780374650000,-300.0,0.00011648,2]
[423745856,1780374650000,-500.0,0.00010865,2]
[423745860,1780374650000,-500.0,0.00011139,2]
[423745855,1780374650000,-283.0,0.00010705,2]
[423745852,1780374650000,-5445.02245057,0.00010614,2]
[423745861,1780374650000,-215.67541492,0.0001114,2]
[423745862,1780374650000,-152.15,0.00011207,2]
[423745870,1780374650000,-600.73,0.00011528,2]
[423745872,1780374650000,-168.21,0.00011626,2]
[423745871,1780374650000,-1243.69,0.00011557,2]
[423745858,1780374650000,-151.0,0.00011094,2]
[423745897,1780374650000,-500.0,0.00012654,2]